fUSD/lending_fUSD_20250125
["ID","MTS","AMOUNT","RATE_DAILY","PERIOD"]
[350303007,1737779445044,-259.33662797,0.00021956,10]
[350303008,1737779445054,-180.03346702,0.00021956,120]
[350303009,1737779445064,-4051.03879077,0.00021956,2]
[350303010,1737779445073,-963.79454828,0.00021956,5]
[350303011,1737779445082,-861.2429068,0.00021956,5]
[350303012,1737779445091,-7018.12594164,0.00021956,2]
[350303013,1737779445101,-584.18289138,0.00021956,5]
[350303014,1737779445110,-405.53143779,0.00021956,120]
[350303015,1737779445119,-20567.48184509,0.00021956,7]
[350303016,1737779445127,-22544.77501226,0.00021956,2]
[350303017,1737779445138,-14681.62137576,0.00021956,3]
[350303018,1737779445148,-1262.03899862,0.00021956,4]
[350303019,1737779445157,-152.7556001,0.00021956,2]
[350303020,1737779445165,-417.79242139,0.00021956,30]
[350303021,1737779445175,-328.6841729,0.00021956,120]
[350303022,1737779445185,-1265.98214786,0.00021956,4]
[350303023,1737779445195,-4796.62959733,0.00021956,2]
[350303024,1737779445204,-4991.93418214,0.00021956,7]
[350303025,1737779445213,-2002.14293031,0.00021956,120]
[350303026,1737779445226,-171.06240574,0.00021956,30]
[350303027,1737779445236,-41168.249999,0.00021956,2]
[350303028,1737779445245,-215.84377299,0.00021956,5]
[350303029,1737779445254,-669.97614019,0.00021956,30]
[350303030,1737779445263,-330.33733851,0.00021956,120]
[350303031,1737779445272,-8006.74749395,0.00021956,120]
[350303032,1737779445282,-35701.63544809,0.00021956,7]
[350303033,1737779445291,-9208.62491261,0.00021956,2]
[350303034,1737779445300,-34300.69643037,0.00021956,2]
[350303035,1737779445311,-13134.44973358,0.00021956,5]
[350303036,1737779445320,-471.1338315,0.00021956,120]
[350303037,1737779445329,-194.67324945,0.00021956,30]
[350303038,1737779445338,-408.41342838,0.00021956,30]
[350303039,1737779445347,-1495.99383588,0.00021956,120]
[350303040,1737779445356,-164.81502463,0.00021956,2]
[350303041,1737779445366,-1582.70251167,0.00021956,120]
[350303042,1737779445375,-6682.84005133,0.00021956,4]
[350303045,1737779445384,-298.6534157,0.00021956,30]
[350303048,1737779445393,-777.93939064,0.00021956,120]
[350303051,1737779445403,-501.07183183,0.00021956,5]
[350303053,1737779445412,-5125.33246494,0.00021956,4]
[350303055,1737779445422,-11649.05466605,0.00021956,5]
[350303056,1737779445431,-289.57350381,0.00021956,120]
[350303058,1737779445440,-854.44478506,0.00021956,2]
[350303060,1737779445450,-154.5546533,0.00021956,120]
[350303062,1737779445459,-359.21881905,0.00021956,5]
[350303064,1737779445468,-495.01243042,0.00021956,2]
[350303066,1737779445477,-1094.8350906,0.00021956,2]
[350303067,1737779445486,-10001.46030408,0.00021956,2]
[350303068,1737779445495,-150.00016567,0.00021956,2]
[350303071,1737779445504,-500.0,0.00021956,2]
[350303074,1737779445514,-150.0,0.00021957,2]
[350303076,1737779445524,-150.0,0.00021958,2]
[350303079,1737779445533,-150.0,0.00021962,2]
[350303081,1737779445542,-150.0,0.00021964,2]
[350303102,1737779445656,-150.0,0.00021965,2]
[350303105,1737779445667,-150.0,0.00021965,2]
[350303107,1737779445676,-150.0,0.00021968,2]
[350303110,1737779445686,-150.0,0.00021973,4]
[350303112,1737779445695,-169.57426571,0.00021973,4]
[350303115,1737779445704,-167.8651235,0.00021973,4]
[350303117,1737779445714,-150.0,0.00021973,2]
[350303120,1737779445723,-150.0,0.00021974,2]
[350303123,1737779445732,-151.14570161,0.00021976,2]
[350303125,1737779445741,-150.0,0.00021979,2]
[350303128,1737779445750,-150.0,0.00021981,2]
[350303131,1737779445759,-150.0,0.00021982,2]
[350303133,1737779445769,-150.0,0.00021982,2]
[350303135,1737779445778,-150.0,0.00021982,2]
[350303137,1737779445787,-150.0,0.00021983,2]
[350303140,1737779445796,-252.93809162,0.00021984,2]
[350303142,1737779445806,-335.0062688,0.00021985,2]
[350303144,1737779445816,-335.0062688,0.00021985,2]
[350303146,1737779445825,-335.0062688,0.00021985,2]
[350303147,1737779445834,-335.0062688,0.00021985,2]
[350303148,1737779445843,-335.0062688,0.00021985,2]
[350303149,1737779445852,-4568.8376032,0.00021985,2]
[350303151,1737779445861,-4673.1731302,0.00021985,2]
[350303152,1737779445870,-4777.5086571,0.00021985,2]
[350303154,1737779445879,-4881.844184,0.00021985,2]
[350303156,1737779445888,-4986.179711,0.00021985,2]
[350303158,1737779445898,-1248.0791071,0.00021985,2]
[350303160,1737779445908,-1276.5806654,0.00021985,2]
[350303162,1737779445917,-1305.0822237,0.00021985,2]
[350303164,1737779445927,-1333.583782,0.00021985,2]
[350303166,1737779445936,-1362.0853403,0.00021985,2]
[350303168,1737779445945,-344.9109066,0.00021985,2]
[350303170,1737779445954,-352.7874092,0.00021985,2]
[350303172,1737779445963,-360.6639118,0.00021985,2]
[350303174,1737779445973,-368.5404143,0.00021985,2]
[350303175,1737779445982,-376.4169169,0.00021985,2]
[350303177,1737779445992,-150.0,0.00021987,2]
[350303179,1737779446001,-150.0,0.00021988,2]
[350303181,1737779446010,-150.0,0.00021988,2]
[350303182,1737779446019,-335.0062688,0.00021989,2]
[350303183,1737779446029,-428.0707926,0.00021989,2]
[350303184,1737779446038,-150.0,0.00021989,2]
[350303185,1737779446048,-4464.5020763,0.00021989,2]
[350303186,1737779446059,-1219.5775488,0.00021989,2]
[350303187,1737779446068,-337.034404,0.00021989,2]
[350303188,1737779446078,-195852.52054821,0.0002199,14]
[350303189,1737779446088,-996.52607701,0.0002199,2]
[350303191,1737779446098,-158.13677173,0.0002199,2]
[350303192,1737779446108,-150.0,0.00021993,2]
[350303194,1737779446117,-4224.76254423,0.00021996,2]
[350303195,1737779446126,-119781.66780922,0.00021997,2]
[350303196,1737779446138,-2000.0,0.00021999,2]
[350303197,1737779446154,-2000.0,0.00021999,2]
[350303199,1737779446163,-2000.0,0.00021999,2]
[350303201,1737779446172,-2000.0,0.00021999,2]
[350303203,1737779446181,-2000.0,0.00021999,2]
[350303205,1737779446191,-2000.0,0.00021999,2]
[350303207,1737779446201,-2000.0,0.00021999,2]
[350303208,1737779446210,-2000.0,0.00021999,2]
[350303209,1737779446220,-3347.09368954,0.00021999,2]
[350303210,1737779446229,-482.43480148,0.00021999,2]
[350303211,1737779446239,-159.6437709,0.00021999,2]
[350303212,1737779446248,-639.95983627,0.00021999,2]
[350303213,1737779446258,-500.0,0.00021999,2]
[350303214,1737779446267,-435.16,0.00021999,2]
[350303215,1737779446276,-500.0,0.00021999,2]
[350303216,1737779446286,-571.96,0.00021999,2]
[350303217,1737779446296,-500.0,0.00021999,2]
[350303218,1737779446306,-500.0,0.00021999,2]
[350303219,1737779446316,-500.0,0.00021999,2]
[350303220,1737779446325,-500.0,0.00021999,2]
[350303221,1737779446335,-500.0,0.00021999,2]
[350303222,1737779446344,-240.9,0.00021999,2]
[350303223,1737779446353,-500.0,0.00021999,2]
[350303224,1737779446363,-500.0,0.00021999,2]
[350303225,1737779446372,-500.0,0.00021999,2]
[350303226,1737779446381,-500.0,0.00021999,2]
[350303227,1737779446391,-500.0,0.00021999,2]
[350303228,1737779446401,-500.0,0.00021999,2]
[350303229,1737779446410,-500.0,0.00021999,2]
[350303230,1737779446420,-500.0,0.00021999,2]
[350303231,1737779446429,-500.0,0.00021999,2]
[350303232,1737779446438,-500.0,0.00021999,2]
[350303233,1737779446448,-500.0,0.00021999,2]
[350303234,1737779446458,-500.0,0.00021999,2]
[350303235,1737779446467,-500.0,0.00021999,2]
[350303236,1737779446477,-500.0,0.00021999,2]
[350303237,1737779446486,-500.0,0.00021999,2]
[350303238,1737779446496,-500.0,0.00021999,2]
[350303239,1737779446506,-665.54,0.00021999,2]
[350303240,1737779446515,-500.0,0.00021999,2]
[350303241,1737779446525,-500.0,0.00021999,2]
[350303242,1737779446535,-500.0,0.00021999,2]
[350303243,1737779446544,-500.0,0.00021999,2]
[350303244,1737779446554,-500.0,0.00021999,2]
[350303245,1737779446564,-500.0,0.00021999,2]
[350303246,1737779446575,-500.0,0.00021999,2]
[350303247,1737779446584,-500.0,0.00021999,2]
[350303248,1737779446594,-500.0,0.00021999,2]
[350303249,1737779446603,-500.0,0.00021999,2]
[350303250,1737779446614,-500.0,0.00021999,2]
[350303251,1737779446623,-500.0,0.00021999,2]
[350303252,1737779446633,-500.0,0.00021999,2]
[350303253,1737779446643,-500.0,0.00021999,2]
[350303254,1737779446653,-500.0,0.00021999,2]
[350303255,1737779446662,-500.0,0.00021999,2]
[350303256,1737779446671,-500.0,0.00021999,2]
[350303257,1737779446681,-500.0,0.00021999,2]
[350303258,1737779446690,-500.0,0.00021999,2]
[350303259,1737779446700,-500.0,0.00021999,2]
[350303260,1737779446709,-500.0,0.00021999,2]
[350303261,1737779446718,-150.0,0.00021999,2]
[350303262,1737779446728,-482.16961586,0.00021999,2]
[350303263,1737779446738,-500.0,0.00021999,2]
[350303264,1737779446748,-500.0,0.00021999,2]
[350303265,1737779446758,-500.0,0.00021999,2]
[350303266,1737779446767,-500.0,0.00021999,2]
[350303267,1737779446777,-620.68132635,0.00021999,2]
[350303268,1737779446786,-500.0,0.00021999,2]
[350303269,1737779446797,-530.25118006,0.00021999,2]
[350303270,1737779446807,-508.48957307,0.00021999,2]
[350303271,1737779446817,-394.40890062,0.00021999,2]
[350303272,1737779446827,-500.0,0.00021999,2]
[350303273,1737779446838,-30130.72892011,0.00021999,2]
[350303274,1737779446847,-500.0,0.00021999,2]
[350303275,1737779446856,-500.0,0.00021999,2]
[350303276,1737779446865,-500.0,0.00021999,2]
[350303277,1737779446875,-500.0,0.00021999,2]
[350303278,1737779446884,-500.0,0.00021999,2]
[350303279,1737779446894,-500.0,0.00021999,2]
[350303280,1737779446903,-500.0,0.00021999,2]
[350303281,1737779446912,-500.0,0.00021999,2]
[350303282,1737779446922,-500.0,0.00021999,2]
[350303283,1737779446932,-512.33466643,0.00021999,2]
[350303284,1737779446942,-500.0,0.00021999,2]
[350303285,1737779446951,-447.09,0.00021999,2]
[350303286,1737779446963,-222.07693973,0.00021999,2]
[350303287,1737779446978,-500.0,0.00021999,2]
[350303288,1737779446991,-500.0,0.00021999,2]
[350303289,1737779447004,-500.0,0.00021999,2]
[350303290,1737779447015,-500.0,0.00021999,2]
[350303291,1737779447026,-500.0,0.00021999,2]
[350303292,1737779447038,-500.0,0.00021999,2]
[350303293,1737779447050,-557.04,0.00021999,2]
[350303294,1737779447062,-500.0,0.00021999,2]
[350303295,1737779447074,-500.0,0.00021999,2]
[350303296,1737779447087,-500.0,0.00021999,2]
[350303297,1737779447100,-500.0,0.00021999,2]
[350303298,1737779447114,-500.0,0.00021999,2]
[350303299,1737779447125,-500.0,0.00021999,2]
[350303300,1737779447137,-500.0,0.00021999,2]
[350303301,1737779447151,-500.0,0.00021999,2]
[350303302,1737779447163,-500.0,0.00021999,2]
[350303303,1737779447175,-500.0,0.00021999,2]
[350303304,1737779447188,-501.90929987,0.00021999,2]
[350303305,1737779447200,-500.0,0.00021999,2]
[350303306,1737779447214,-500.0,0.00021999,2]
[350303307,1737779447226,-500.0,0.00021999,2]
[350303308,1737779447238,-500.0,0.00021999,2]
[350303309,1737779447251,-500.0,0.00021999,2]
[350303310,1737779447263,-592.69135887,0.00021999,2]
[350303311,1737779447275,-549.6,0.00021999,2]
[350303312,1737779447287,-641.35413624,0.00021999,2]
[350303313,1737779447297,-500.0,0.00021999,2]
[350303314,1737779447310,-500.0,0.00021999,2]
[350303315,1737779447321,-500.0,0.00021999,2]
[350303316,1737779447333,-500.0,0.00021999,2]
[350303317,1737779447345,-500.0,0.00021999,2]
[350303318,1737779447356,-500.0,0.00021999,2]
[350303319,1737779447368,-500.0,0.00021999,2]
[350303320,1737779447380,-562.5,0.00021999,2]
[350303321,1737779447391,-500.0,0.00021999,2]
[350303322,1737779447403,-500.0,0.00021999,2]
[350303323,1737779447413,-500.0,0.00021999,2]
[350303324,1737779447425,-501.95440659,0.00021999,2]
[350303325,1737779447437,-746.74,0.00021999,2]
[350303326,1737779447450,-500.0,0.00021999,2]
[350303327,1737779447462,-525.54689573,0.00021999,2]
[350303328,1737779447474,-500.0,0.00021999,2]
[350303329,1737779447485,-500.0,0.00021999,2]
[350303330,1737779447496,-500.0,0.00021999,2]
[350303331,1737779447506,-508.15528765,0.00021999,2]
[350303332,1737779447516,-500.0,0.00021999,2]
[350303333,1737779447527,-500.0,0.00021999,2]
[350303334,1737779447538,-644.60069156,0.00021999,2]
[350303335,1737779447552,-500.0,0.00021999,2]
[350303336,1737779447567,-500.0,0.00021999,2]
[350303337,1737779447577,-500.0,0.00021999,2]
[350303338,1737779447588,-500.0,0.00021999,2]
[350303339,1737779447598,-55036.95,0.00021999,2]
[350303340,1737779447608,-1262.78,0.00021999,2]
[350303341,1737779447619,-500.0,0.00021999,2]
[350303342,1737779447630,-500.0,0.00021999,2]
[350303343,1737779447642,-500.0,0.00021999,2]
[350303344,1737779447654,-500.0,0.00021999,2]
[350303345,1737779447666,-500.0,0.00021999,2]
[350303346,1737779447676,-500.0,0.00021999,2]
[350303347,1737779447687,-550.16,0.00021999,2]
[350303348,1737779447697,-500.0,0.00021999,2]
[350303349,1737779447709,-500.0,0.00021999,2]
[350303350,1737779447720,-500.0,0.00021999,2]
[350303351,1737779447731,-500.0,0.00021999,2]
[350303352,1737779447743,-500.09468217,0.00021999,2]
[350303353,1737779447755,-500.0,0.00021999,2]
[350303354,1737779447768,-500.0,0.00021999,2]
[350303355,1737779447780,-500.0,0.00021999,2]
[350303356,1737779447792,-625.15,0.00021999,2]
[350303357,1737779447803,-958.0,0.00022,2]
[350303358,1737779447813,-273.30714778,0.00022,2]
[350303359,1737779447825,-648335.90123628,0.00022,2]
[350303360,1737779447836,-5493.74081685,0.00022,2]
[350303361,1737779447848,-6438511.90918567,0.00022,2]
[350303362,1737779448014,-8604.30730633,0.00022,2]
[350303363,1737779448564,-391.83599999,0.00016438,2]
[350303364,1737779448628,-246.92400001,0.00016438,2]
[350303365,1737779448638,-500.0,0.00016438,2]
[350303366,1737779448648,-441.84554237,0.00016438,2]
[350303367,1737779448658,-638.76,0.00016575,2]
[350303368,1737779448669,-638.76,0.00016712,2]
[350303369,1737779448678,-638.76,0.00016849,2]
[350303370,1737779448688,-638.76,0.00016986,2]
[350303371,1737779448699,-638.76,0.00017123,2]
[350303372,1737779448709,-638.76,0.0001726,2]
[350303373,1737779448719,-185.32598192,0.00017397,2]
[350303374,1737779449039,-349.64066153,0.00016438,2]
[350303375,1737779449049,-500.0,0.00016438,2]
[350303376,1737779449059,-173.40933847,0.00017397,2]
[350303377,1737779449071,-280.02467961,0.00017397,2]
[350303378,1737779449081,-67.60780559,0.00017534,2]
[350303379,1737779449114,-571.15219441,0.00017534,2]
[350303380,1737779449125,-638.76,0.00017671,2]
[350303381,1737779449134,-300.0,0.000177,2]
[350303382,1737779449147,-638.76,0.00017808,2]
[350303383,1737779449157,-638.76,0.00017945,2]
[350303384,1737779449167,-638.76,0.00018082,2]
[350303385,1737779449176,-638.76,0.00018219,2]
[350303386,1737779449186,-638.76,0.00018356,2]
[350303387,1737779449196,-638.76,0.00018493,2]
[350303388,1737779449206,-638.76,0.0001863,2]
[350303389,1737779449216,-638.76,0.00018767,2]
[350303390,1737779449229,-638.76,0.00018904,2]
[350303391,1737779449239,-638.76,0.00019041,2]
[350303392,1737779449249,-638.76,0.00019178,2]
[350303393,1737779449259,-638.76,0.00019315,2]
[350303394,1737779449268,-760.45579606,0.00019398,2]
[350303395,1737779449277,-760.45579606,0.00019417,2]
[350303396,1737779449286,-638.76,0.00019452,2]
[350303397,1737779449295,-760.45579606,0.0001948,2]
[350303398,1737779449304,-760.45579606,0.00019494,2]
[350303399,1737779449314,-760.45579606,0.00019496,2]
[350303400,1737779449324,-638.78478552,0.00019589,2]
[350303401,1737779449333,-174.84302244,0.00019692,2]
[350303402,1737779449342,-150.0,0.00021733,2]
[350303403,1737779449352,-150.0,0.00021742,2]
[350303404,1737779449361,-150.0,0.00021745,2]
[350303405,1737779449370,-150.0,0.00021751,2]
[350303406,1737779449380,-150.0,0.00021763,2]
[350303407,1737779449389,-150.0,0.00021766,2]
[350303408,1737779449398,-150.0,0.00021782,2]
[350303409,1737779449408,-150.0,0.00021789,2]
[350303410,1737779449417,-150.0,0.00021791,2]
[350303411,1737779449426,-150.0,0.00021795,2]
[350303412,1737779449435,-150.0,0.00021801,2]
[350303413,1737779449444,-150.0,0.00021801,2]
[350303414,1737779449453,-150.0,0.00021802,2]
[350303415,1737779449462,-150.0,0.00021804,2]
[350303416,1737779449472,-150.0,0.00021809,2]
[350303417,1737779449481,-150.0,0.00021819,2]
[350303418,1737779449491,-150.0,0.00021822,2]
[350303419,1737779449501,-150.0,0.00021826,2]
[350303420,1737779449510,-300.0,0.00021842,2]
[350303421,1737779449520,-150.0,0.00021844,2]
[350303422,1737779449530,-150.0,0.00021854,2]
[350303423,1737779449540,-150.0,0.00021859,2]
[350303424,1737779449549,-150.0,0.00021861,2]
[350303425,1737779449559,-150.0,0.00021862,2]
[350303426,1737779449568,-150.0,0.00021863,2]
[350303427,1737779449578,-150.0,0.00021873,2]
[350303428,1737779449587,-150.0,0.00021874,2]
[350303429,1737779449595,-500.0,0.00021879,2]
[350303430,1737779449604,-150.0,0.00021879,2]
[350303431,1737779449614,-150.0,0.00021892,2]
[350303432,1737779449623,-150.0,0.00021895,2]
[350303433,1737779449632,-150.0,0.00021899,2]
[350303434,1737779449641,-174.84302244,0.000219,2]
[350303435,1737779449651,-150.0,0.000219,2]
[350303436,1737779449661,-150.0,0.00021921,2]
[350303437,1737779449670,-150.0,0.00021934,2]
[350303438,1737779449679,-150.0,0.00021947,2]
[350303439,1737779449689,-150.0,0.00021957,2]
[350303440,1737779449698,-150.0,0.00021962,2]
[350303441,1737779449707,-150.0,0.00021965,2]
[350303442,1737779449716,-150.0,0.0002197,2]
[350303443,1737779449725,-150.0,0.00021981,2]
[350303444,1737779449735,-150.0,0.00021982,2]
[350303445,1737779449745,-150.0,0.00021993,2]
[350303446,1737779449754,-150.0,0.00021995,2]
[350303447,1737779449763,-500.0,0.00021999,2]
[350303448,1737779449773,-500.0,0.00021999,2]
[350303449,1737779449783,-670.7,0.00021999,2]
[350303450,1737779449792,-277612.58760414,0.00022,2]
[350303456,1737779780388,160.22,0.00016658,30]
[350303462,1737780333468,-172.14663798,0.00010036,2]
[350303463,1737780333490,-130.15170982,0.00010137,2]
[350303464,1737780334094,-61.45829018,0.00010137,2]
[350303465,1737780334118,-148.70668899,0.00010164,2]
[350303466,1737780439560,-1076.63331101,0.00010164,2]
[350303467,1737780439584,-863.59662,0.00010494,2]
[350303468,1737780439607,-300.0,0.00010958,2]
[350303469,1737780439630,-6880.59304011,0.00010959,2]
[350303470,1737780439653,-1376.11860802,0.00010959,2]
[350303471,1737780439676,-7181.49196835,0.00010959,2]
[350303472,1737780439699,-150.0,0.00011753,2]
[350303473,1737780439722,-16486.0,0.00011774,2]
[350303474,1737780439744,-150.0,0.00011984,2]
[350303475,1737780439767,-1140.52,0.00012045,2]
[350303476,1737780439790,-250.0,0.00012045,2]
[350303477,1737780439813,-250.0,0.00012064,2]
[350303478,1737780439836,-1500.0,0.00012077,2]
[350303479,1737780439858,-458.17,0.00012078,2]
[350303480,1737780439881,-318.79,0.00012079,2]
[350303481,1737780439904,-318.79,0.00012082,2]
[350303482,1737780439928,-318.79,0.00012086,2]
[350303483,1737780439950,-9461.59067676,0.00012086,2]
[350303484,1737780439974,-23900.0,0.00012087,2]
[350303485,1737780439997,-318.79,0.00012089,2]
[350303486,1737780440020,-318.79,0.00012092,2]
[350303487,1737780440043,-318.79,0.00012095,2]
[350303488,1737780440065,-318.79,0.00012098,2]
[350303489,1737780440087,-544.8,0.00012101,2]
[350303490,1737780440110,-318.79,0.00012101,2]
[350303491,1737780440132,-318.79,0.00012105,2]
[350303492,1737780440157,-318.79,0.00012108,2]
[350303493,1737780440182,-9435.96,0.0001211,2]
[350303494,1737780440206,-318.79,0.00012111,2]
[350303495,1737780440230,-318.79,0.00012114,2]
[350303496,1737780440253,-318.79,0.00012117,2]
[350303497,1737780440276,-335.42,0.0001212,2]
[350303498,1737780440299,-318.79,0.0001212,2]
[350303499,1737780440322,-318.79,0.00012124,2]
[350303500,1737780440345,-318.79,0.00012127,2]
[350303501,1737780440368,-318.79,0.0001213,2]
[350303502,1737780440391,-3368.32,0.00012131,2]
[350303503,1737780440415,-318.79,0.00012133,2]
[350303504,1737780440438,-318.79,0.00012136,2]
[350303505,1737780440461,-318.79,0.0001214,2]
[350303506,1737780440491,-1852.42,0.0001214,2]
[350303507,1737780440517,-1000.0,0.00012154,2]
[350303508,1737780440540,-411.89010798,0.00012171,3]
[350303509,1737780440565,-9510.03,0.00012172,2]
[350303510,1737780440589,-768.51,0.00012186,2]
[350303511,1737780440613,-254.87,0.00012237,2]
[350303512,1737780440635,-171.59,0.00012329,2]
[350303513,1737780440793,-944.19,0.0001238,2]
[350303514,1737780440826,-1225.34,0.00012428,2]
[350303515,1737780443091,-184.84,0.00012688,2]
[350303516,1737780443113,-200.0,0.00012909,2]
[350303517,1737780443138,-115.19058872,0.00013415,2]
[350303518,1737780446921,166.66666666,0.00010394,2]
[350303519,1737780450084,-134.80941128,0.00013415,2]
[350303520,1737780450107,-1000.0,0.00013673,2]
[350303521,1737780450128,-318.15,0.00013699,2]
[350303522,1737780450149,-200.0,0.00013699,2]
[350303523,1737780450171,-658.94860193,0.00013699,2]
[350303524,1737780470466,165.9,0.0001206,2]
[350303525,1737780536439,275.22372161,0.00010959,2]
[350303529,1737780544943,161.64,0.00010137,2]
[350303543,1737780631763,-387.645,0.0001351,2]
[350303544,1737780631774,-1154.477901,0.0001351,2]
[350303545,1737780631783,-3945.522099,0.00013582,2]
[350303546,1737780631794,-46054.477901,0.00013582,2]
[350303547,1737780631804,-237.69010187,0.0001359,2]
[350303548,1737780631813,-237.69010187,0.00013592,2]
[350303549,1737780631822,-237.69010187,0.00013594,2]
[350303550,1737780631832,-237.69010187,0.00013597,2]
[350303551,1737780631842,-237.69010187,0.00013599,2]
[350303552,1737780631851,-2029.58694797,0.00013699,2]
[350303553,1737780631879,-2164.0,0.00013699,2]
[350303554,1737780631890,-491.2444501,0.00013699,2]
[350303555,1737780631901,-602.88856417,0.0001371,2]
[350303556,1737780631913,-165.62143583,0.0001371,2]
[350303557,1737780631922,-150.0,0.0001378,2]
[350303558,1737780631931,-300.0,0.0001378,2]
[350303559,1737780631940,-1521.95123358,0.00013781,7]
[350303560,1737780632000,-330.62029001,0.00013781,7]
[350303561,1737780632011,-19288.61109671,0.00013781,7]
[350303562,1737780632020,-9952.50111364,0.00013781,7]
[350303563,1737780632029,-931.29,0.00013951,2]
[350303564,1737780632038,-996.62,0.00013982,2]
[350303565,1737780632047,-1000.0,0.00013999,2]
[350303566,1737780632057,-165.9,0.0001407,2]
[350303567,1737780632066,-8331.38,0.0001416,2]
[350303568,1737780632075,-250.0,0.0001423,2]
[350303569,1737780632085,-318.15,0.00014384,2]
[350303570,1737780632095,-545.60801411,0.00014692,2]
[350303571,1737780632135,-267.5499995,0.00014692,2]
[350303572,1737780632151,-412.18198639,0.00014692,2]
[350303573,1737780632160,-255.0,0.00014896,2]
[350303574,1737780632169,-377.62,0.00015051,2]
[350303575,1737780632179,-318.15,0.00015068,2]
[350303576,1737780632188,-420.0,0.000151,2]
[350303577,1737780632197,-172.87753008,0.000152,2]
[350303600,1737780632701,-22950.12246992,0.000152,2]
[350303601,1737780632711,-768.51,0.00015233,2]
[350303602,1737780632720,-250.0,0.00015241,2]
[350303603,1737780632729,-5558.0,0.000156,3]
[350303604,1737780632738,-931.29,0.00015695,2]
[350303605,1737780632747,-1000.0,0.00015749,2]
[350303606,1737780632757,-318.15,0.00015753,2]
[350303607,1737780632766,-55410.0,0.0001579,2]
[350303608,1737780632775,-5558.0,0.00016,5]
[350303609,1737780632784,-165.9,0.0001608,2]
[350303610,1737780632793,-6619.1158,0.00016279,2]
[350303611,1737780632802,-513.63431978,0.000163,2]
[350303612,1737780632812,-513.63431958,0.000163,2]
[350303613,1737780632821,-513.63431958,0.000163,2]
[350303614,1737780632830,-513.63431958,0.000163,2]
[350303615,1737780632839,-513.63431958,0.000163,2]
[350303616,1737780632848,-513.63431958,0.000163,2]
[350303617,1737780632857,-513.63431958,0.000163,2]
[350303618,1737780632870,-513.63431958,0.000163,2]
[350303619,1737780632879,-513.63431958,0.000163,2]
[350303620,1737780632888,-683.51,0.00016328,2]
[350303621,1737780632898,-54529.3638113,0.00016338,2]
[350303622,1737780632908,-513.63431958,0.00016383,2]
[350303623,1737780632919,-683.51,0.00016428,2]
[350303624,1737780632929,-164.8426033,0.00016437,2]
[350303625,1737780632938,-266.22403852,0.00016438,2]
[350303626,1737780632947,-500.0,0.00016438,2]
[350303627,1737780632956,-633.30958718,0.00016438,2]
[350303628,1737780632965,-500.0,0.00016438,2]
[350303629,1737780632974,-500.0,0.00016438,2]
[350303630,1737780632983,-265.8095371,0.00016438,2]
[350303631,1737780632992,-500.0,0.00016438,2]
[350303632,1737780633002,-500.0,0.00016438,2]
[350303633,1737780633011,-500.0,0.00016438,2]
[350303634,1737780633021,-500.0,0.00016438,2]
[350303635,1737780633030,-500.0,0.00016438,2]
[350303636,1737780633039,-500.0,0.00016438,2]
[350303637,1737780633049,-500.0,0.00016438,2]
[350303638,1737780633059,-500.0,0.00016438,2]
[350303639,1737780633068,-500.0,0.00016438,2]
[350303640,1737780633078,-500.0,0.00016438,2]
[350303641,1737780633087,-482.43480148,0.00016438,2]
[350303642,1737780633097,-500.0,0.00016438,2]
[350303643,1737780633106,-500.0,0.00016438,2]